bitfinex/quotes_BTCUSD_20241202
["timestamp","ask_amount","ask_price","bid_price","bid_amount"]
[1733149176008,0.0017268,95733.0,95732.0,0.053]
[1733149176221,0.0017268,95733.0,95732.0,0.1803]
[1733149178694,0.0017268,95733.0,95732.0,0.1823]
[1733149179151,0.0017268,95733.0,95732.0,0.1843]
[1733149180536,0.0017268,95733.0,95732.0,0.20486267]
[1733149181651,0.0017268,95733.0,95732.0,0.1843]
[1733149181883,0.0017268,95733.0,95732.0,0.18614864]
[1733149182090,0.0017268,95733.0,95732.0,0.1843]
[1733149182299,0.00801661,95733.0,95732.0,0.1843]
[1733149182535,0.0017268,95733.0,95732.0,0.1843]
[1733149182744,0.00801661,95733.0,95732.0,0.1843]
[1733149184567,0.00801661,95733.0,95732.0,0.20282907]
[1733149185691,0.21693061,95733.0,95732.0,0.20282907]
[1733149186138,0.21693061,95733.0,95732.0,0.1843]
[1733149194615,0.21693061,95733.0,95732.0,0.1382]
[1733149195044,0.00801661,95733.0,95732.0,0.1382]
[1733149195478,0.00801661,95733.0,95732.0,0.1873]
[1733149195690,0.0017268,95733.0,95732.0,0.18914867]
[1733149195900,0.0017268,95733.0,95732.0,0.27092584]
[1733149196111,0.0017268,95733.0,95732.0,0.26907717]
[1733149198315,0.0080241,95733.0,95732.0,0.1873]
[1733149198527,0.0017268,95733.0,95732.0,0.18914864]
[1733149198753,0.0080241,95733.0,95732.0,0.18914864]
[1733149198968,0.0017268,95733.0,95732.0,0.18914864]
[1733149199177,0.0080241,95733.0,95732.0,0.18914864]
[1733149199391,0.0017268,95733.0,95732.0,0.18914864]
[1733149199604,0.0080241,95733.0,95732.0,0.18914864]
[1733149199838,0.0080241,95733.0,95732.0,0.1873]
[1733149203679,0.0080241,95733.0,95732.0,0.057]
[1733149205327,0.0080241,95733.0,95732.0,0.07037316]
[1733149205544,0.0080241,95733.0,95732.0,0.057]
[1733149207712,0.0080241,95733.0,95732.0,0.1848]
[1733149207966,0.0080241,95733.0,95732.0,0.45815412]
[1733149208180,0.0017268,95733.0,95732.0,0.45630555]
[1733149209049,0.0017268,95733.0,95732.0,0.45230555]
[1733149209261,0.0027268,95733.0,95732.0,0.46030555]
[1733149209502,0.0037268,95733.0,95732.0,0.46530555]
[1733149209719,0.0027268,95733.0,95732.0,0.50936925]
[1733149209928,0.0037268,95733.0,95732.0,0.51736925]
[1733149210160,0.0027268,95733.0,95732.0,0.51236925]
[1733149210636,0.0037268,95733.0,95732.0,0.51736925]
[1733149210841,0.0027268,95733.0,95732.0,0.50936925]
[1733149212164,0.0037268,95733.0,95732.0,0.51836925]
[1733149212849,0.0037268,95733.0,95732.0,0.5355611]
[1733149213111,0.0017266,95735.0,95734.0,0.19866034]
[1733149213313,0.2,95782.0,95767.0,0.03]
[1733149213536,0.2,95782.0,95772.0,0.0009987]
[1733149213741,0.21521101,95776.0,95772.0,0.0009987]
[1733149213982,0.00639101,95776.0,95772.0,0.0009987]
[1733149214427,0.00639101,95776.0,95773.0,0.03]
[1733149214661,0.00645023,95776.0,95775.0,0.053]
[1733149214888,5.922e-05,95776.0,95775.0,0.053]
[1733149215355,0.00544234,95776.0,95775.0,0.05484784]
[1733149215590,0.00544234,95776.0,95775.0,0.26366984]
[1733149215802,5.922e-05,95776.0,95775.0,0.261822]
[1733149216039,5.922e-05,95776.0,95775.0,0.11528193]
[1733149216257,5.922e-05,95776.0,95775.0,0.11812974]
[1733149216458,5.922e-05,95776.0,95775.0,0.05584781]
[1733149216705,5.922e-05,95776.0,95775.0,0.05484781]
[1733149216930,5.922e-05,95776.0,95775.0,0.05584781]
[1733149217613,5.922e-05,95776.0,95775.0,0.05684781]
[1733149220978,5.922e-05,95776.0,95775.0,0.22550815]
[1733149221187,5.922e-05,95776.0,95775.0,0.15299959]
[1733149221397,5.922e-05,95776.0,95775.0,0.32350763]
[1733149221612,5.922e-05,95776.0,95775.0,0.32165993]
[1733149222955,5.922e-05,95776.0,95775.0,0.22366034]
[1733149223373,0.00470802,95776.0,95775.0,0.22366034]
[1733149223605,5.922e-05,95776.0,95775.0,0.22366034]
[1733149223806,0.00470802,95776.0,95775.0,0.22366034]
[1733149224012,5.922e-05,95776.0,95775.0,0.22366034]
[1733149224284,0.00178562,95776.0,95775.0,0.30059184]
[1733149225394,0.00178562,95776.0,95775.0,0.22366034]
[1733149227082,0.00178562,95776.0,95775.0,0.055]
[1733149227271,0.00178562,95776.0,95775.0,0.05684777]
[1733149230909,0.00178562,95776.0,95775.0,0.055]
[1733149231795,0.00760338,95776.0,95775.0,0.055]
[1733149232489,0.00760338,95776.0,95775.0,0.07931378]
[1733149232935,0.00178562,95776.0,95775.0,0.07931378]
[1733149233424,0.00178562,95776.0,95775.0,0.05684788]
[1733149234423,0.00760185,95776.0,95775.0,0.05684788]
[1733149236134,0.00760185,95776.0,95775.0,0.055]
[1733149236352,0.00760185,95776.0,95775.0,0.05684782]
[1733149239074,0.00760185,95776.0,95775.0,0.03384782]
[1733149240173,0.00760185,95776.0,95775.0,0.00384782]
[1733149241316,0.00178562,95776.0,95775.0,0.00384782]
[1733149241531,0.00759912,95776.0,95775.0,0.00384782]
[1733149241747,0.00178562,95776.0,95775.0,0.00384782]
[1733149241999,0.00760016,95776.0,95775.0,0.00384782]
[1733149243714,0.00760016,95776.0,95775.0,0.09596491]
[1733149243937,0.00760016,95776.0,95775.0,0.39002525]
[1733149244173,0.00178562,95776.0,95775.0,0.38817743]
[1733149245322,0.00178562,95776.0,95775.0,0.51402264]
[1733149245972,0.00178562,95776.0,95775.0,0.45190555]
[1733149246193,0.00178562,95776.0,95775.0,0.32606034]
[1733149246413,0.00178562,95776.0,95775.0,0.032]
[1733149246623,0.00178562,95776.0,95775.0,0.03384777]
[1733149247276,0.00760798,95776.0,95775.0,0.10914777]
[1733149247711,0.00178562,95776.0,95775.0,0.10914777]
[1733149247931,0.00178562,95776.0,95775.0,0.00384777]
[1733149248630,0.00760798,95776.0,95775.0,0.00384777]
[1733149249063,0.00178562,95776.0,95775.0,0.00384777]
[1733149249672,0.00178562,95776.0,95775.0,0.03384777]
[1733149249887,0.00178562,95776.0,95775.0,0.10427535]
[1733149250097,0.00178562,95776.0,95775.0,0.03384777]
[1733149250563,0.00760798,95776.0,95775.0,0.03384777]
[1733149251904,0.00760798,95776.0,95775.0,0.00384777]
[1733149253037,0.00760798,95776.0,95775.0,0.03384777]
[1733149253895,0.00760798,95776.0,95775.0,0.032]
[1733149255046,0.00760798,95776.0,95775.0,0.002]
[1733149257163,0.00760798,95776.0,95775.0,0.05821581]
[1733149257412,0.00760798,95776.0,95775.0,0.03384785]
[1733149258974,0.00178562,95776.0,95775.0,0.03384785]
[1733149259178,0.00760866,95776.0,95775.0,0.00384785]
[1733149260084,0.00178562,95776.0,95775.0,0.00384785]
[1733149260312,0.00760866,95776.0,95775.0,0.00384785]
[1733149261382,0.00760866,95776.0,95775.0,0.03384785]
[1733149261840,0.00178562,95776.0,95775.0,0.03384785]
[1733149262289,0.00760866,95776.0,95775.0,0.03384785]
[1733149262538,0.00178562,95776.0,95775.0,0.03384785]
[1733149263094,0.00760866,95776.0,95775.0,0.03384785]
[1733149263509,0.00178562,95776.0,95775.0,0.03384785]
[1733149263720,0.00760866,95776.0,95775.0,0.13671591]
[1733149263929,0.00178562,95776.0,95775.0,0.13671591]
[1733149264602,0.00178562,95776.0,95775.0,0.43122146]
[1733149264815,0.00178562,95776.0,95775.0,0.47577361]
[1733149265045,0.00178562,95776.0,95775.0,0.50836194]
[1733149266153,0.00178562,95776.0,95775.0,0.50736194]
[1733149266361,0.00278562,95776.0,95775.0,0.51636194]
[1733149266587,0.00278562,95776.0,95775.0,0.48377361]
[1733149266801,0.00278562,95776.0,95775.0,0.48277361]
[1733149267269,0.00278562,95776.0,95775.0,0.48477361]
[1733149267496,0.00278562,95776.0,95775.0,0.51732105]
[1733149267737,0.00178562,95776.0,95775.0,0.50632105]
[1733149267967,0.0017276,95777.0,95776.0,0.70658034]
[1733149268183,0.0017276,95777.0,95776.0,0.94480445]
[1733149268412,0.0017272,95799.0,95798.0,0.53353234]
[1733149268641,0.0017272,95799.0,95798.0,0.66037105]
[1733149270191,0.0017272,95799.0,95798.0,0.66537105]
[1733149270721,0.0017272,95799.0,95798.0,0.66937105]
[1733149270949,0.0017272,95799.0,95798.0,0.77220251]
[1733149272675,0.0017272,95799.0,95798.0,0.0399935]
[1733149273130,0.2104972,95799.0,95798.0,0.0399935]
[1733149273574,0.21604378,95799.0,95798.0,0.0349935]
[1733149273782,0.21604378,95799.0,95798.0,0.0329935]
[1733149273997,0.21604378,95799.0,95798.0,0.0349935]
[1733149274475,0.21604378,95799.0,95798.0,0.0329935]
[1733149274696,0.21604378,95799.0,95798.0,0.0029935]
[1733149274910,0.21604378,95799.0,95798.0,0.0009935]
[1733149275124,0.21604378,95799.0,95798.0,0.0019935]
[1733149276483,0.29604378,95799.0,95798.0,0.0019935]
[1733149276702,0.39888899,95799.0,95798.0,0.0019935]
[1733149276934,0.19011899,95799.0,95798.0,0.001]
[1733149277149,0.00727378,95799.0,95798.0,0.001]
[1733149278128,0.00727378,95799.0,95798.0,0.00284743]
[1733149278354,0.0017272,95799.0,95798.0,0.00284743]
[1733149278565,0.0017272,95799.0,95798.0,0.06292483]
[1733149279404,0.00726812,95799.0,95798.0,0.06292483]
[1733149279605,0.0017272,95799.0,95798.0,0.03284743]
[1733149281139,0.00726812,95799.0,95798.0,0.03284743]
[1733149281348,0.0017272,95799.0,95798.0,0.03284743]
[1733149281788,0.00726812,95799.0,95798.0,0.03284743]
[1733149282055,0.0017272,95799.0,95798.0,0.03284743]
[1733149282284,0.00726812,95799.0,95798.0,0.03284743]
[1733149282519,0.0017272,95799.0,95798.0,0.03284743]
[1733149283199,0.00726812,95799.0,95798.0,0.03284743]
[1733149283454,0.0017272,95799.0,95798.0,0.05710843]
[1733149283665,0.00726812,95799.0,95798.0,0.03284743]
[1733149283872,0.0017272,95799.0,95798.0,0.20150777]
[1733149285041,0.0017272,95799.0,95798.0,0.03284743]
[1733149285232,0.0017272,95799.0,95798.0,0.20150777]
[1733149286409,0.00726812,95799.0,95798.0,0.20150777]
[1733149286636,0.0017272,95799.0,95798.0,0.20150777]
[1733149287104,0.00726812,95799.0,95798.0,0.20150777]
[1733149287313,0.0017272,95799.0,95798.0,0.20150777]
[1733149287525,0.00728203,95799.0,95798.0,0.20150777]
[1733149287733,0.0017272,95799.0,95798.0,0.20150777]
[1733149289757,0.00728203,95799.0,95798.0,0.20150777]
[1733149290847,0.0017272,95799.0,95798.0,0.20150777]
[1733149291300,0.00728203,95799.0,95798.0,0.20150777]
[1733149291515,0.0017272,95799.0,95798.0,0.20150777]
[1733149292413,0.00728203,95799.0,95798.0,0.03284743]
[1733149292618,0.0017272,95799.0,95798.0,0.20150777]
[1733149292858,0.00728203,95799.0,95798.0,0.20150777]
[1733149293097,0.0017272,95799.0,95798.0,0.20150777]
[1733149293329,0.00728203,95799.0,95798.0,0.20150777]
[1733149293552,0.0017272,95799.0,95798.0,0.20150777]
[1733149294021,0.00728203,95799.0,95798.0,0.20150777]
[1733149294235,0.0017272,95799.0,95798.0,0.20150777]
[1733149294443,0.00728203,95799.0,95798.0,0.03284743]
[1733149294672,0.0017272,95799.0,95798.0,0.20150777]
[1733149294901,0.00728203,95799.0,95798.0,0.20150777]
[1733149295150,0.0017272,95799.0,95798.0,0.20150777]
[1733149295597,0.00728203,95799.0,95798.0,0.20150777]
[1733149297548,0.00728203,95799.0,95798.0,0.03284743]
[1733149297815,0.00728203,95799.0,95798.0,0.031]
[1733149298086,0.28618203,95799.0,95798.0,0.031]
[1733149298768,0.28618203,95799.0,95798.0,0.001]
[1733149299920,0.33208203,95799.0,95798.0,0.001]
[1733149301888,0.4662669,95799.0,95798.0,0.001]
[1733149302829,0.408792,95789.0,95788.0,0.03]
[1733149303051,0.63733721,95789.0,95788.0,0.03]
[1733149303294,0.64286675,95789.0,95788.0,0.03]
[1733149304891,0.43507475,95789.0,95788.0,0.03]
[1733149305600,0.43707475,95789.0,95788.0,0.03]
[1733149307032,0.626382,95788.0,95775.0,0.00105152]
[1733149307255,0.10284521,95788.0,95775.0,0.00105152]
[1733149307483,0.208816,95778.0,95775.0,0.00105152]
[1733149308361,0.21432264,95778.0,95775.0,0.00105152]
[1733149308862,0.21422274,95778.0,95775.0,0.00105152]
[1733149309555,0.21422274,95778.0,95777.0,0.0027258]
[1733149310975,0.21422274,95778.0,95777.0,0.0037258]
[1733149319375,0.41422274,95778.0,95777.0,0.0037258]
[1733149319595,0.53772274,95778.0,95777.0,0.0037258]
[1733149319828,0.64056795,95778.0,95777.0,0.0037258]
[1733149320297,0.67190761,95778.0,95777.0,0.0037258]
[1733149320526,0.00550664,95778.0,95777.0,0.0027258]
[1733149320800,0.00550664,95778.0,95777.0,0.0035737]
[1733149321087,0.208798,95786.0,95778.0,0.03]
[1733149321316,0.208807,95782.0,95779.0,0.00184778]
[1733149321537,0.208807,95782.0,95778.0,0.03184782]
[1733149321789,0.40879,95790.0,95778.0,0.03184782]
[1733149322019,0.208794,95788.0,95779.0,0.00184774]
[1733149322235,0.208801,95785.0,95780.0,0.00184776]
[1733149322929,0.417607,95784.0,95780.0,0.00184776]
[1733149323186,0.41761,95783.0,95778.0,0.075]
[1733149323413,0.208805,95783.0,95779.0,0.0018478]
[1733149323690,0.198805,95783.0,95779.0,0.0018478]
[1733149324837,0.407611,95783.0,95779.0,0.0018478]
[1733149325980,0.407611,95783.0,95779.0,0.03]
[1733149326239,0.208809,95781.0,95779.0,0.03]
[1733149326484,0.2,95780.0,95779.0,0.03]
[1733149326710,0.30284521,95780.0,95779.0,0.03]
[1733149326941,0.30803934,95780.0,95779.0,0.03]
[1733149327694,0.339379,95780.0,95779.0,0.03]
[1733149327938,0.03133966,95778.0,95777.0,0.0017258]
[1733149328181,0.13418487,95778.0,95777.0,0.0017258]
[1733149328888,0.139379,95778.0,95777.0,0.0017258]
[1733149329586,0.20519413,95778.0,95777.0,0.0037258]
[1733149329816,0.00519413,95778.0,95777.0,0.0037258]
[1733149330256,0.2096749,95780.0,95777.0,0.0037258]
[1733149330483,0.00519413,95778.0,95777.0,0.0037258]
[1733149330708,0.4184869,95780.0,95777.0,0.0037258]
[1733149330938,0.00519413,95778.0,95777.0,0.0037258]
[1733149331152,0.4184869,95780.0,95777.0,0.0037258]
[1733149331446,0.4184869,95780.0,95777.0,0.0027258]
[1733149331864,0.00519517,95779.0,95777.0,0.0037258]
[1733149332081,0.208816,95778.0,95777.0,0.0037258]
[1733149332328,0.00519517,95779.0,95777.0,0.0027258]
[1733149332561,0.0008629,95780.0,95777.0,0.00457363]
[1733149332831,0.00519517,95778.0,95777.0,0.0027258]
[1733149333065,0.0008629,95780.0,95779.0,0.03]
[1733149334667,0.0008629,95780.0,95779.0,0.0309876]
[1733149334876,0.0008629,95780.0,95779.0,0.03283528]
[1733149335350,0.0008629,95780.0,95779.0,0.03683528]
[1733149336043,0.0008629,95780.0,95779.0,0.04183528]
[1733149336779,0.0008629,95780.0,95779.0,0.19287704]
[1733149337018,0.0008629,95780.0,95779.0,0.12493528]
[1733149338333,0.0008629,95780.0,95779.0,0.39644083]
[1733149338557,0.0008629,95780.0,95779.0,0.39459315]
[1733149339520,0.0008629,95780.0,95779.0,0.38959315]
[1733149339737,0.0008629,95780.0,95779.0,0.48444467]
[1733149339945,0.0008629,95780.0,95779.0,0.47544467]
[1733149340372,0.0008629,95780.0,95779.0,0.48044467]
[1733149340669,0.0008629,95780.0,95779.0,0.55294467]
[1733149340894,0.0008629,95780.0,95779.0,0.55794467]
[1733149341572,0.0008629,95780.0,95779.0,0.54894467]
[1733149341811,0.0008629,95780.0,95779.0,0.54394467]
[1733149342263,0.0008629,95780.0,95779.0,0.54994467]
[1733149342518,0.0008629,95780.0,95779.0,0.55894467]
[1733149342749,0.0008629,95780.0,95779.0,0.55167147]
[1733149343260,0.0008629,95780.0,95779.0,0.56067147]
[1733149343503,0.0008629,95780.0,95779.0,0.55167147]
[1733149344453,0.0008629,95780.0,95779.0,0.54567147]
[1733149344668,0.0008629,95780.0,95779.0,0.56067147]
[1733149345104,0.0008629,95780.0,95779.0,0.55167147]
[1733149345321,0.0008629,95780.0,95779.0,0.55467147]
[1733149345547,0.0018629,95780.0,95779.0,0.56067147]
[1733149345828,0.0018629,95780.0,95779.0,0.55167147]
[1733149346066,0.0008629,95780.0,95779.0,0.55467147]
[1733149346777,0.0008629,95780.0,95779.0,0.54567147]
[1733149347458,0.0018629,95780.0,95779.0,0.55267147]
[1733149347925,0.0008629,95780.0,95779.0,0.54567147]
[1733149348142,0.0008629,95780.0,95779.0,0.55467147]
[1733149348418,0.0018629,95780.0,95779.0,0.56367147]
[1733149348645,0.0018629,95780.0,95779.0,0.55467147]
[1733149348862,0.0018629,95780.0,95779.0,0.56367147]
[1733149349546,0.0018629,95780.0,95779.0,0.71367147]
[1733149352778,0.0018629,95780.0,95779.0,0.56367147]
[1733149353009,0.0018629,95780.0,95779.0,0.45481995]
[1733149353238,0.0018629,95780.0,95779.0,0.23665961]
[1733149353975,0.0018629,95780.0,95779.0,0.15355961]
[1733149354235,0.0018629,95780.0,95779.0,0.0507144]
[1733149354983,0.0018629,95780.0,95779.0,0.05256202]
[1733149355209,0.0008629,95780.0,95779.0,0.0027144]
[1733149355440,0.0008629,95780.0,95779.0,0.0377144]
[1733149355652,0.00608785,95780.0,95779.0,0.0467144]
[1733149355872,0.00608785,95780.0,95779.0,0.0377144]
[1733149355873,0.0008629,95780.0,95779.0,0.0377144]
[1733149356104,0.00608785,95780.0,95779.0,0.0377144]
[1733149356367,0.2096739,95780.0,95779.0,0.0417144]
[1733149356588,0.21489885,95780.0,95779.0,0.0417144]
[1733149356811,0.21489885,95780.0,95779.0,0.0367144]
[1733149357024,0.21489885,95780.0,95779.0,0.0397144]
[1733149357491,0.21489885,95780.0,95779.0,0.0327144]
[1733149357955,0.21489885,95780.0,95779.0,0.0407144]
[1733149358186,0.21489885,95780.0,95779.0,0.0357144]
[1733149358420,0.21489885,95780.0,95779.0,0.0397144]
[1733149361618,0.21489885,95780.0,95779.0,0.0387268]
[1733149361619,0.41489885,95780.0,95779.0,0.0387268]
[1733149362280,0.57213851,95780.0,95779.0,0.0387268]
[1733149362517,0.67498372,95780.0,95779.0,0.0387268]
[1733149362762,0.69546504,95780.0,95779.0,0.0387268]
[1733149363018,0.67498372,95780.0,95779.0,0.0387268]
[1733149363490,0.67498372,95780.0,95779.0,0.0357268]
[1733149363943,0.67498372,95780.0,95779.0,0.0317268]
[1733149364600,0.67598372,95780.0,95779.0,0.0317268]
[1733149364814,0.67698372,95780.0,95779.0,0.0317268]
[1733149365940,0.67698372,95780.0,95779.0,0.0017268]
[1733149370138,0.43138372,95780.0,95779.0,0.0017268]
[1733149370393,0.63138372,95780.0,95779.0,0.0017268]
[1733149371115,0.00808785,95780.0,95779.0,0.0017268]
[1733149372015,0.00608785,95780.0,95779.0,0.0017268]
[1733149372469,0.00708785,95780.0,95779.0,0.0017268]
[1733149372923,0.00608785,95780.0,95779.0,0.0017268]
[1733149373605,0.00708785,95780.0,95779.0,0.0017268]
[1733149373827,0.00608785,95780.0,95779.0,0.0017268]
[1733149374086,0.00708785,95780.0,95779.0,0.0017268]
[1733149375706,0.20708785,95780.0,95779.0,0.0017268]
[1733149375968,0.31832751,95780.0,95779.0,0.0017268]
[1733149376421,0.31732751,95780.0,95779.0,0.0017268]
[1733149376905,0.31832751,95780.0,95779.0,0.0317268]
[1733149377137,0.31732751,95780.0,95779.0,0.0317268]
[1733149377371,0.31832751,95780.0,95779.0,0.0317268]
[1733149378536,0.31932751,95780.0,95779.0,0.0317268]
[1733149379711,0.31832751,95780.0,95779.0,0.0317268]
[1733149380815,0.42117272,95780.0,95779.0,0.0317268]
[1733149387828,0.31832751,95780.0,95779.0,0.0317268]
[1733149388047,0.03842751,95780.0,95779.0,0.0317268]
[1733149388734,0.00708785,95780.0,95779.0,0.0317268]
[1733149388983,0.00708785,95780.0,95779.0,0.0335746]
[1733149389229,0.00708785,95780.0,95779.0,0.0317268]
[1733149389491,0.00708785,95780.0,95779.0,0.0335746]
[1733149389492,0.00608785,95780.0,95779.0,0.0335746]
[1733149389727,0.00508785,95780.0,95779.0,0.0317268]
[1733149389949,0.00608785,95780.0,95779.0,0.0317268]
[1733149390174,0.00708785,95780.0,95779.0,0.0317268]
[1733149390428,0.03642751,95780.0,95779.0,0.0317268]
[1733149390854,0.03642751,95780.0,95779.0,0.0337268]
[1733149391320,0.03642751,95780.0,95779.0,0.0357268]
[1733149391755,0.00595125,95780.0,95779.0,0.0357268]
[1733149392041,0.03729091,95780.0,95779.0,0.0357268]
[1733149393880,0.23729091,95780.0,95779.0,0.0357268]
[1733149395256,0.03729091,95780.0,95779.0,0.0357268]
[1733149395731,0.00595125,95780.0,95779.0,0.0357268]
[1733149395989,0.03729091,95780.0,95779.0,0.0357268]
[1733149397823,0.03729091,95780.0,95779.0,0.1189268]
[1733149398058,0.03452409,95780.0,95779.0,0.14830557]
[1733149400790,0.00589298,95780.0,95779.0,0.14929497]
[1733149401320,0.03723264,95780.0,95779.0,0.14929497]
[1733149401529,0.03723264,95780.0,95779.0,0.12176402]
[1733149402228,0.03723264,95780.0,95779.0,0.0367162]
[1733149403316,0.00589298,95780.0,95779.0,0.0818162]
[1733149403532,0.0008629,95789.0,95788.0,0.19866034]
[1733149403752,0.0008629,95789.0,95788.0,0.65854663]
[1733149403992,0.0017292,95810.0,95798.0,0.261772]
[1733149404202,0.0017292,95810.0,95798.0,0.48801721]
[1733149404618,0.0017292,95810.0,95798.0,0.48901241]
[1733149406443,0.0027272,95799.0,95798.0,0.49801241]
[1733149406865,0.0027272,95799.0,95798.0,0.50701241]
[1733149407093,0.0027272,95799.0,95798.0,0.60084387]
[1733149407547,0.0017272,95799.0,95798.0,0.60084387]
[1733149408690,0.0017272,95799.0,95798.0,0.76950421]
[1733149409157,0.0027272,95799.0,95798.0,0.77850421]
[1733149409369,0.0027272,95799.0,95798.0,0.79559784]
[1733149414950,0.0027272,95799.0,95798.0,0.79977684]
[1733149415624,0.0027272,95799.0,95798.0,0.94977684]
[1733149420180,0.0027272,95799.0,95798.0,0.79977684]
[1733149420387,0.0027272,95799.0,95798.0,0.79559784]
[1733149421718,0.0027272,95799.0,95798.0,0.2577672]
[1733149423109,0.0027272,95799.0,95798.0,0.0489952]
[1733149423339,0.00818998,95799.0,95798.0,0.0489952]
[1733149423587,0.0027272,95799.0,95798.0,0.15184041]
[1733149423808,0.0027272,95799.0,95798.0,0.15368757]
[1733149424060,0.0027272,95799.0,95798.0,0.25651903]
[1733149424290,0.0027272,95799.0,95798.0,0.25467187]
[1733149424972,0.0027272,95799.0,95798.0,0.26867187]
[1733149425410,0.0017272,95799.0,95798.0,0.25967187]
[1733149425624,0.0017272,95799.0,95798.0,0.26467187]
[1733149426266,0.0017272,95799.0,95798.0,0.26867187]
[1733149426485,0.0027272,95799.0,95798.0,0.27767187]
[1733149427990,0.0027272,95799.0,95798.0,0.17484041]
[1733149431737,0.0027272,95799.0,95798.0,0.05084238]
[1733149436299,0.03406686,95799.0,95798.0,0.0489952]
[1733149436727,0.03990092,95799.0,95798.0,0.0489952]
[1733149437167,0.0027272,95799.0,95798.0,0.14468784]
[1733149437413,0.0027272,95799.0,95798.0,0.22179032]
[1733149437641,0.0017272,95799.0,95798.0,0.21094289]
[1733149437866,0.0017272,95799.0,95798.0,0.21279011]
[1733149438109,0.0017272,95799.0,95798.0,0.21779011]
[1733149438328,0.0017272,95799.0,95798.0,0.14068763]
[1733149438559,0.0017272,95799.0,95798.0,0.13568763]
[1733149438800,0.0017272,95799.0,95798.0,0.14068763]
[1733149439244,0.0017272,95799.0,95798.0,0.13568763]
[1733149439690,0.0017272,95799.0,95798.0,0.14868763]
[1733149439919,0.0017272,95799.0,95798.0,0.14068763]
[1733149440129,0.0017272,95799.0,95798.0,0.14868763]
[1733149442116,0.0017272,95799.0,95798.0,0.14684041]
[1733149442608,0.0017272,95799.0,95798.0,0.14868767]
[1733149442828,0.0017272,95799.0,95798.0,0.21380137]
[1733149443780,0.0017272,95799.0,95798.0,0.14868767]
[1733149444216,0.0017272,95799.0,95798.0,0.22718767]
[1733149444475,0.0017272,95799.0,95798.0,0.24834041]
[1733149445120,0.0017272,95799.0,95798.0,0.16984041]
[1733149445338,0.0017272,95799.0,95798.0,0.14184041]
[1733149445583,0.0017272,95799.0,95798.0,0.14068756]
[1733149445800,0.0017272,95799.0,95798.0,0.14968756]
[1733149446009,0.0017272,95799.0,95798.0,0.14468756]
[1733149446226,0.0017272,95799.0,95798.0,0.14284041]
[1733149446436,0.0017272,95799.0,95798.0,0.14784041]
[1733149447755,0.0017272,95799.0,95798.0,0.0449952]
[1733149448419,0.00756817,95799.0,95798.0,0.0449952]
[1733149448669,0.0017272,95799.0,95798.0,0.0449952]
[1733149448883,0.03890783,95799.0,95798.0,0.0449952]
[1733149449106,0.03889247,95799.0,95798.0,0.0449952]
[1733149455707,0.03306686,95799.0,95798.0,0.0449952]
[1733149456807,0.0388711,95799.0,95798.0,0.0449952]
[1733149459453,0.00753144,95799.0,95798.0,0.0449952]
[1733149459673,0.00753144,95799.0,95798.0,0.04684261]
[1733149459934,0.0017272,95799.0,95798.0,0.04684261]
[1733149460161,0.0017272,95799.0,95798.0,0.10288713]
[1733149461062,0.0017272,95799.0,95798.0,0.20573234]
[1733149463508,0.0017272,95799.0,95798.0,0.14968782]
[1733149464159,0.0017272,95799.0,95798.0,0.04684261]
[1733149464400,0.0017272,95799.0,95798.0,0.04684253]
[1733149465269,0.0017272,95799.0,95798.0,0.0449952]
[1733149465474,0.0017272,95799.0,95798.0,0.04684258]
[1733149466553,0.0017272,95799.0,95798.0,0.0449952]
[1733149469017,0.0017272,95799.0,95798.0,0.08835492]
[1733149469231,0.0017272,95799.0,95798.0,0.04684258]
[1733149471644,0.0017272,95799.0,95798.0,0.14968779]
[1733149471856,0.0017272,95799.0,95798.0,0.23278779]
[1733149472076,0.0017272,95799.0,95798.0,0.23094041]
[1733149472513,0.0017272,95799.0,95798.0,0.28137604]
[1733149473186,0.0017272,95799.0,95798.0,0.23094041]
[1733149473391,0.0017272,95799.0,95798.0,0.14784041]
[1733149473600,0.0017272,95799.0,95798.0,0.1496877]
[1733149475893,0.0017272,95799.0,95798.0,0.2764877]
[1733149476133,0.0017272,95799.0,95798.0,0.27464041]
[1733149476374,0.0017272,95799.0,95798.0,0.38372609]
[1733149477494,0.0017272,95799.0,95798.0,0.37872609]
[1733149477720,0.0017272,95799.0,95798.0,0.39095385]
[1733149477953,0.0017272,95799.0,95798.0,0.40695385]
[1733149478172,0.0017272,95799.0,95798.0,0.37672609]
[1733149478443,0.0017272,95799.0,95798.0,0.36972609]
[1733149478651,0.0017272,95799.0,95798.0,0.36472609]
[1733149479080,0.0017272,95799.0,95798.0,0.38204155]
[1733149479326,0.0017272,95799.0,95798.0,0.16915587]
[1733149479580,0.0017272,95799.0,95798.0,0.15368767]
[1733149479811,0.0017272,95799.0,95798.0,0.0489952]
[1733149480021,0.0017272,95799.0,95798.0,0.0189952]
[1733149480248,0.03306686,95799.0,95798.0,0.018]
[1733149480485,0.03890445,95799.0,95798.0,0.018]
[1733149480701,0.03890445,95799.0,95798.0,0.009]
[1733149480929,0.03890445,95799.0,95798.0,0.003]
[1733149481138,0.03890445,95799.0,95798.0,0.009]
[1733149481361,0.03890445,95799.0,95798.0,0.006]
[1733149481824,0.03890445,95799.0,95798.0,0.008]
[1733149482051,0.11930445,95799.0,95798.0,0.008]
[1733149488152,0.11930445,95799.0,95798.0,0.005]
[1733149488995,0.11930445,95799.0,95798.0,0.003]
[1733149489508,0.11930445,95799.0,95798.0,0.006]
[1733149490159,0.11930445,95799.0,95798.0,0.003]
[1733149490598,0.31930445,95799.0,95798.0,0.009]
[1733149493421,0.03890445,95799.0,95798.0,0.009]
[1733149494118,0.0017272,95799.0,95798.0,0.009]
[1733149494595,0.0017272,95799.0,95798.0,0.0108475]
[1733149495483,0.0017272,95799.0,95798.0,0.0125745]
[1733149500305,0.0017272,95799.0,95798.0,0.11541971]
[1733149500525,0.0017272,95799.0,95798.0,0.31410953]
[1733149500737,0.0017272,95799.0,95798.0,0.33526203]
[1733149500991,0.0017272,95799.0,95798.0,0.65392237]
[1733149501221,0.0017272,95799.0,95798.0,0.68648269]
[1733149501451,0.0017272,95799.0,95798.0,0.67748269]
[1733149501663,0.0017272,95799.0,95798.0,0.62119287]
[1733149502798,0.0017272,95799.0,95798.0,0.64182063]
[1733149505004,0.0017272,95799.0,95798.0,0.60926031]
[1733149506311,0.001728,95812.0,95809.0,0.208748]
[1733149506587,0.001728,95812.0,95809.0,0.46492903]
[1733149506817,0.001728,95812.0,95809.0,0.56591357]
[1733149507688,0.00232226,95810.0,95809.0,0.56591357]
[1733149507897,0.00232226,95810.0,95809.0,0.58391357]
[1733149508327,0.00232226,95810.0,95809.0,0.56591357]
[1733149508772,0.00232226,95810.0,95809.0,0.57491357]
[1733149510373,0.00232226,95810.0,95809.0,0.58391357]
[1733149515649,0.00232226,95810.0,95809.0,0.60153052]
[1733149519849,2.6e-07,95812.0,95809.0,0.92019086]
[1733149521878,2.8e-07,95819.0,95818.0,0.70334275]
[1733149522120,2.8e-07,95819.0,95818.0,0.71234275]
[1733149522341,2.8e-07,95824.0,95823.0,0.63047834]
[1733149522564,2.8e-07,95824.0,95823.0,0.83714601]